{"text_format":"1","workbook":"xlsx","n_sheets":5,"sheets":["Instructions","Index","Price List","Websites","Changes"],"not_rendered":{"charts":0,"images":2,"macros":1,"external_links":0,"defined_names":18,"comments":0,"pivot_tables":0},"unopened":[],"bounds":{"document_bytes":16777216,"sheet_cells":100000,"rows_first":2000,"rows_last":500,"rows_between":2000,"halvings":0,"cell_chars":16384,"cell_head_chars":4096},"cells_cut":0,"cells_raw":0,"read":"whole","date_system":"1900"}

{"sheet":"Instructions","index":0,"n_rows":58,"n_cols":10,"rows_kept":58,"cut":false,"hidden":false,"merged":[[7,2,7,7],[36,3,36,4]]}
["Manufacturer","Ape"]
["File as","A"]
["Product Code","B"]
["CCTD Effective Date","5/1/23 (Updated)"]
[]
[]
[]
["Enter your Company Name"]
[]
[null,"Click on \"Index\" to set the print area for the price list index"]
[null,"Then you can send it to print"]
[]
[]
[null,"Click on \"Suggested Price List\" to set the print area for Conestoga Tile's suggested price list."]
[null,"Then you can send it to print"]
[]
[]
[null,"Enter your discount codes if you want a personal net cost sheet."]
[]
[null,"Product"]
[null,"Code","Disc. %"]
[null,{"$f":"+B3","v":"B"}]
[]
[null,"Click on \"Your Cost\" to set the print area for your personal cost report."]
[null,"Then you can send it to print"]
[]
[]
["Discount: ","To help establish your price list, enter the gross profit percent for each type of product."]
[null,"If you want to use Conestoga Tile's list price, leave them blank."]
[]
["Round Nickel: ","If you always want your price to round to the nearest nickel, enter \"YES\"."]
[null,"If you enter \"NO\", it will NOT round to the nearest nickel."]
[]
["Ending Cents: ","If you always want your price to end with a certain cents, enter that cent value."]
[null,"If you leave it \"blank\" will NOT round to this cent value."]
[]
[null,"Group","GP Margin","GP Margin % for",null,"Round Nickel","add/subtract","Ending Cents"]
[null,1,null,"Field Tile",null,"No",0]
[null,2,null,"Trim",null,"No",0,null,null," "]
[null,3,null,"Decos",null,"No",0]
[null,4,null,0,null,"No",0]
[null,5,null,0,null,"No",0]
[null,6,null,0,null,"No",0]
[null,7,null,0,null,"No",0]
[]
["If you want to manually adjust your price list, hit \"F5\" and go to \"Customer_Cost\" to manually adjust pricing."]
["You can enter a value in the column labeled \"Adj.\" to change your price manually."]
[]
[null,"Click on \"Your Price Calculation\" to set the print area for your personal cost calculation report."]
[null,"Then you can send it to print"]
[]
[]
[null,"Click on \"Your Price List\" to set the print area for your personal price list."]
[null,"Then you can send it to print"]
[null,null,null,null,null,null,null,"Yes"]
[]
["If you have any questions on how to best use this spreadsheet, please feel free to contact"]
["Jim Vogel at (800) 422-6860, ext. 4201 or via e-mail at jimvogel@cctd.com"]

{"sheet":"Index","index":1,"n_rows":54,"n_cols":6,"rows_kept":54,"cut":false,"hidden":false,"merged":[[5,0,5,10],[51,0,51,10],[53,0,53,10],[2,5,2,10],[3,4,3,7],[10,4,10,8],[11,4,11,8],[12,4,12,8],[13,4,13,8],[14,4,14,8],[15,4,15,8],[16,4,16,8],[17,4,17,8],[18,4,18,8],[19,4,19,8],[20,4,20,8],[26,4,26,8],[21,4,21,8],[22,4,22,8],[23,4,23,8],[24,4,24,8],[25,4,25,8]]}
[]
[]
[null,null,null,null,null,{"$f":"\"File '\"&Instructions!B2&\"' - \"&Instructions!B1","v":"File 'A' - Ape"}]
[]
[]
[{"$f":"\"Price List Index - \"&Instructions!B4","v":"Price List Index - 5/1/23 (Updated)"}]
[]
[]
[]
[]
["Page",null,"Series",null,"Product Type"]
["1",null,"Altea",null,"Glazed Ceramic Wall"]
[1,null,"Calacatta Slow",null,"Glazed Ceramic Wall & Glazed Porcelain Floor"]
[1,null,"Calpe",null,"Glazed Ceramic Wall"]
[1,null,"Dynamic",null,"Glazed Ceramic Wall"]
[1,null,"Fado",null,"Glazed Ceramic Wall"]
[1,null,"Grunge",null,"Glazed Ceramic Wall"]
[1,null,"Hamptons",null,"Glazed Ceramic Wall"]
[1,null,"Memories",null,"Glazed Ceramic Wall"]
[1,null,"Murus",null,"Glazed Porcelain Wall"]
[2,null,"Onyx Slow",null,"Glazed Ceramic Wall & Glazed Porcelain Floor"]
[2,null,"Savannah",null,"Glazed Ceramic Wall"]
[2,null,"Seville",null,"Glazed Ceramic Wall"]
[2,null,"Switch",null,"Glazed Ceramic Wall & Glazed Porcelain Floor"]
[2,null,"Toscana",null,"Glazed Porcelain"]
[2,null,"Verona",null,"Glazed Ceramic Wall & Glazed Porcelain Floor"]
[2,null,"Vintage",null,"Glazed Ceramic Wall"]
[]
[]
[]
[]
[]
[]
[]
[]
[]
[]
[]
[]
[]
[]
[]
[]
[]
[]
[]
[]
[]
[]
[]
[]
["This price list is available electronically on an Excel spreadsheet at www.conestogatile.com/pricelists."]
[]
["The spreadsheet has many special features to assist you.  Apply your discount to generate your net costs for your purchasing department.  Apply your standard gross margin percentage or custom prices to generate your own custom price list for your showroom.  Print out individual price list for each series that can be attached to the back of your sample boards for easy reference."]

{"sheet":"Price List","index":2,"n_rows":225,"n_cols":39,"rows_kept":225,"cut":false,"hidden":false,"merged":[[207,2,207,17],[9,23,9,30],[12,20,12,21],[9,20,9,21],[209,2,209,17],[208,2,208,17],[206,2,206,17],[13,28,13,30],[14,12,15,17],[12,12,12,17],[204,2,204,17],[9,12,9,17],[18,2,18,17],[17,12,17,13],[19,2,19,17],[10,12,10,13]]}
[null,"Field Tile",null,null,"Size",null,"Field",null,null,null,null,null,null,"SF/CTN",null,null,{"$f":"IF(Suggested=\"Yes\",Y1,AE1)","v":0.05},"SF",{"$f":"+Instructions!$B$3","v":"B"},null,{"$f":"+Instructions!$C$22","v":0},{"$f":"ROUND($Y1*(1-U1)+0.004999,2)","v":0.05},null,"new",0.05,{"$f":"+U1","v":0},0.05,{"$f":"(AE1-AA1)/AE1","v":0},null,1,{"$f":"SUM(AH1:AJ1)+AC1","v":0.05},null,null,{"$f":"ROUND(AA1/(1-VLOOKUP(AD1,Group,2,FALSE)),2)","v":0.05},{"$f":"IF(VLOOKUP(AD1,Group,5,FALSE)=\"YES\",VLOOKUP(ROUND(ROUND(AH1,1)-AH1,2),Round,2,FALSE)+VLOOKUP(AD1,Group,6,FALSE),0)","v":0},{"$f":"IF(VLOOKUP(AD1,Group,7,FALSE)=\"\",0,ROUND(AH1-0.04999,1)-AH1+AK1)","v":0},{"$f":"IF(VLOOKUP(AD1,Group,7,FALSE)=\"\",\"\",VLOOKUP(AD1,Group,7,FALSE))","v":""},null,"X"]
[null,"Trim",null,null,"Size",null,"Shape",null,"Description",null,null,null,null,null,null,null,{"$f":"IF(Suggested=\"Yes\",Y2,AE2)","v":0.05},"EA",{"$f":"+Instructions!$B$3","v":"B"},null,{"$f":"+Instructions!$C$22","v":0},0.05,null,"new",0.05,0,0.05,0,null,2,0.05,null,null,0.05,0,0,"",null,"X"]
[null,"Decos",null,null,"Size",null,"Shape",null,"Description",null,null,null,null,null,null,null,{"$f":"IF(Suggested=\"Yes\",Y3,AE3)","v":0.05},"EA",{"$f":"+Instructions!$B$3","v":"B"},null,{"$f":"+Instructions!$C$22","v":0},0.05,null,"new",0.05,0,0.05,0,null,3,0.05,null,null,0.05,0,0,"",null,"X"]
[null,0,null,null,"Size",null,"Shape",null,"Description",null,null,null,null,null,null,null,{"$f":"IF(Suggested=\"Yes\",'Price List'!Y4,'Price List'!AE4)","v":0},"EA",{"$f":"+Instructions!$B$3","v":"B"},null,{"$f":"+Instructions!$C$22","v":0},0,null,"new",0,0,0,{"$error":"#DIV/0!"},null,4,0,null,null,0,0,0,"",null,"X"]
[null,0,null,null,"Size",null,"Shape",null,"Description",null,null,null,null,null,null,null,{"$f":"IF(Suggested=\"Yes\",'Price List'!Y5,'Price List'!AE5)","v":0},"EA",{"$f":"+Instructions!$B$3","v":"B"},null,{"$f":"+Instructions!$C$22","v":0},0,null,"new",0,0,0,{"$error":"#DIV/0!"},null,5,0,null,null,0,0,0,"",null,"X"]
[null,0,null,null,"Size",null,"Shape",null,"Description",null,null,null,null,null,null,null,{"$f":"IF(Suggested=\"Yes\",'Price List'!Y6,'Price List'!AE6)","v":0},"EA",{"$f":"+Instructions!$B$3","v":"B"},null,{"$f":"+Instructions!$C$22","v":0},0,null,"new",0,0,0,{"$error":"#DIV/0!"},null,6,0,null,null,0,0,0,"",null,"X"]
[null,0,null,null,"Size",null,"Shape",null,"Description",null,null,null,null,null,null,null,{"$f":"IF(Suggested=\"Yes\",'Price List'!Y7,'Price List'!AE7)","v":0},"EA",{"$f":"+Instructions!$B$3","v":"B"},null,{"$f":"+Instructions!$C$22","v":0},0,null,"new",0,0,0,{"$error":"#DIV/0!"},null,7,0,null,null,0,0,0,"",null,"X"]
[null,"Format",null,null,null,null,null,null,null,null,null,null,null,null,"Stock","a",1000,"ABC",null,null,0.1,1000,null,"ABC",1000,0.1,1000,0.1,10,null,1000,null,null,null,null,null,null,null,"X"]
[null,null,null,null,null,null,null,null,null,null,null,null,null,null,null,null,null,null,null,null,null,null,null,null,null,null,null,null,null,null,null,null,null,null,null,null,null,null,"X"]
[null,null,null,null,null,null,null,null,null,null,null,null,"Price List",null,null,null,null,null,null,null,"Cust. Cost",null,null,"Customer Cost Calculation",null,null,null,null,null,null,null,null,null,null,null,null,null,null,"X"]
[null,null,null,"Sizes & Shapes",null,null,null,null,null,null,null,null,"Full Carton",null,"Stock","Note",{"$f":"IF(Suggested=\"Yes\",Y11,AE11)","v":"List Price"},"U/M","Code",null,"Disc.","Net",null,"Chg","List Price","Disc","Act. Cost","GP%","Adj.","Group","Price",null,null,"Calc Price",".05 Round","Cents","Round to",null,"X"]
[null,null,null,null,null,null,null,null,null,null,null,null,null,null,null,null,null,null,null,null,null,null,null,null,null,null,null,null,null,null,null,null,null,null,null,null,null,null,"X"]
[null,null,null,null,null,null,null,null,null,null,null,null,{"$f":"\"File '\"&Instructions!B2&\"' - \"&Instructions!B1","v":"File 'A' - Ape"},null,null,null,null,null,null,null,"Cost",null,null,null,null,null,null,null,null,null,"Retail Price Calculations",null,null,null,null,null,null,null,"X"]
[null,null,null,null,null,null,null,null,null,null,null,null,null,null,null,null,null,{"$f":"+Instructions!B4","v":"5/1/23 (Updated)"},null,null,null,null,null,null,null,null,null,null,{"$f":"TODAY()","v":"2023-08-09"},null,null,null,null,null,null,null,null,null,"X"]
[null,null,null,null,null,null,null,null,null,null,null,null,null,null,null,null,null,null,null,null,null,null,null,null,null,null,null,null,null,null,null,null,null,null,null,null,null,null,"X"]
[null,null,{"$f":"\"Product Code '\"&Instructions!B3&\"'\"","v":"Product Code 'B'"},null,null,null,null,null,null,null,null,null,null,null,null,null,null,null,null,null,null,null,null,null,null,null,null,null,null,null,{"$f":"IF(Instructions!$C$8=\"\",\"\",Instructions!$C$8)","v":""},null,null,null,null,null,null,null,"X"]
[null,null,null,null,null,null,null,null,null,null,null,null,null,null,null,null,null,null,null,null,null,null,null,null,null,null,null,null,null,null,null,null,null,null,null,null,null,null,"X"]
[null,null,"Sizes & Shapes",null,null,null,null,null,null,null,null,null,"Full Carton",null,"Stock","Note",{"$f":"+Q$11","v":"List Price"},"U/M",{"$f":"+S$11","v":"Code"},null,"Disc.","Net",null,"Chg","List Price",{"$f":"+Z$11","v":"Disc"},"Act. Cost","GP%","Adj.",{"$f":"+AD$11","v":"Group"},"Price",null,null,"Calc Price",".05 Round","Cents","Round to",null,"X"]
[null,null,"ALL ITEMS MARKED WITH PACKAGING QUANTITY ARE SOLD IN MULTIPLES OF THAT QUANTITY ONLY",null,null,null,null,null,null,null,null,null,null,null,null,null,null,null,null,null,null,null,null,null,null,null,null,null,null,null,null,null,null,null,null,null,null,null,"X"]
[null,null,"NON-Stock ITEMS - MINIMUM 6-8 WEEK DELIVERY"]
[null,null,null,null,null,null,null,null,null,null,null,null,null,null,null,null,null,null,null,null,null,null,null,null,null,null,null,null,null,null,null,null,null,null,null,null,null,null,"X"]
[null,null,"ALTEA - Glazed Ceramic Wall",null,null,null,null,null,null,null,null,null,null,null,null,"Item # Lookup:","APAL"]
[null,null,"   ",null,null,null,null,null,null,null,null,null,null,null,null,null,null,null,null,null,null,null,null,null,null,null,null,null,null,null,null,null,null,null,null,null,null,null,"X"]
[null,null,null,"Colors:","Grey          Ivory          Sky          Taupe          White"]
[null,null,null,null,null,null,null,null,null,null,null,null,null,null,null,null,null,null,null,null,null,null,null,null,null,null,null,null,null,null,null,null,null,null,null,null,null,null,"X"]
[null,"Field Tile",null,"Gloss:","3\" x 12\"",null,"Field",null,null,null,null,null,null,"5.38 SF/CTN","Stock","a",{"$f":"IF(Suggested=\"Yes\",Y26,AE26)","v":7.8},"SF",{"$f":"+Instructions!$B$3","v":"B"},null,{"$f":"+Instructions!$C$22","v":0},{"$f":"ROUND($Y26*(1-U26)+0.004999,2)","v":7.8},null,"",7.8,{"$f":"+U26","v":0},{"$f":"+V26","v":7.8},{"$f":"(AE26-AA26)/AE26","v":0},null,1,{"$f":"SUM(AH26:AJ26)+AC26","v":7.8},null,null,{"$f":"ROUND(AA26/(1-VLOOKUP(AD26,Group,2,FALSE)),2)","v":7.8},{"$f":"IF(VLOOKUP(AD26,Group,5,FALSE)=\"YES\",VLOOKUP(ROUND(ROUND(AH26,1)-AH26,2),Round,2,FALSE)+VLOOKUP(AD26,Group,6,FALSE),0)","v":0},{"$f":"IF(VLOOKUP(AD26,Group,7,FALSE)=\"\",0,ROUND(AH26-0.04999,1)-AH26+AK26)","v":0},{"$f":"IF(VLOOKUP(AD26,Group,7,FALSE)=\"\",\"\",VLOOKUP(AD26,Group,7,FALSE))","v":""},null,"X"]
[null,null,null,null,null,null,null,null,null,null,null,null,null,null,null,null,null,null,null,null,null,null,null,null,null,null,null,null,null,null,null,null,null,null,null,null,null,null,"X"]
[null,"Decos",null,null,"0.6\" x 12\"",null,"Pencil Bullnose (Edge Stick)",null,null,null,null,null,null,null,"Stock",null,{"$f":"IF(Suggested=\"Yes\",Y28,AE28)","v":9.25},"EA",{"$f":"+Instructions!$B$3","v":"B"},null,{"$f":"+Instructions!$C$22","v":0},{"$f":"ROUND($Y28*(1-U28)+0.004999,2)","v":9.25},null,"",9.25,{"$f":"+U28","v":0},{"$f":"+V28","v":9.25},{"$f":"(AE28-AA28)/AE28","v":0},null,3,{"$f":"SUM(AH28:AJ28)+AC28","v":9.25},null,null,{"$f":"ROUND(AA28/(1-VLOOKUP(AD28,Group,2,FALSE)),2)","v":9.25},{"$f":"IF(VLOOKUP(AD28,Group,5,FALSE)=\"YES\",VLOOKUP(ROUND(ROUND(AH28,1)-AH28,2),Round,2,FALSE)+VLOOKUP(AD28,Group,6,FALSE),0)","v":0},{"$f":"IF(VLOOKUP(AD28,Group,7,FALSE)=\"\",0,ROUND(AH28-0.04999,1)-AH28+AK28)","v":0},{"$f":"IF(VLOOKUP(AD28,Group,7,FALSE)=\"\",\"\",VLOOKUP(AD28,Group,7,FALSE))","v":""},null,"X"]
[]
[null,null,null,"Note:","a) Packaging is changing from 5.38 SF/CTN to 10.76 SF/CTN as inventory with old packaging is depleted."]
[]
[null,null,"CALACATTA SLOW - Glazed Ceramic Wall & Glazed Porcelain Floor",null,null,null,null,null,null,null,null,null,null,null,null,"Item # Lookup:","APCS"]
[null,null,"   ",null,null,null,null,null,null,null,null,null,null,null,null,null,null,null,null,null,null,null,null,null,null,null,null,null,null,null,null,null,null,null,null,null,null,null,"X"]
[null,null,null,"Colors:","Calacatta Slow"]
[null,null,null,null,null,null,null,null,null,null,null,null,null,null,null,null,null,null,null,null,null,null,null,null,null,null,null,null,null,null,null,null,null,null,null,null,null,null,"X"]
[null,"Field Tile",null,null,"3\" x 12\"",null,"Field",null,null,null,null,null,null,"10.76 SF/CTN","Stock",null,{"$f":"IF(Suggested=\"Yes\",Y36,AE36)","v":7.8},"SF",{"$f":"+Instructions!$B$3","v":"B"},null,{"$f":"+Instructions!$C$22","v":0},{"$f":"ROUND($Y36*(1-U36)+0.004999,2)","v":7.8},null,"",7.8,{"$f":"+U36","v":0},{"$f":"+V36","v":7.8},{"$f":"(AE36-AA36)/AE36","v":0},null,1,{"$f":"SUM(AH36:AJ36)+AC36","v":7.8},null,null,{"$f":"ROUND(AA36/(1-VLOOKUP(AD36,Group,2,FALSE)),2)","v":7.8},{"$f":"IF(VLOOKUP(AD36,Group,5,FALSE)=\"YES\",VLOOKUP(ROUND(ROUND(AH36,1)-AH36,2),Round,2,FALSE)+VLOOKUP(AD36,Group,6,FALSE),0)","v":0},{"$f":"IF(VLOOKUP(AD36,Group,7,FALSE)=\"\",0,ROUND(AH36-0.04999,1)-AH36+AK36)","v":0},{"$f":"IF(VLOOKUP(AD36,Group,7,FALSE)=\"\",\"\",VLOOKUP(AD36,Group,7,FALSE))","v":""},null,"X"]
[null,"Field Tile",null,null,"5.5\" x 6.3\"",null,"Field - Hex",null,null,null,null,null,null,"3.55 SF/CTN","Stock","a",{"$f":"IF(Suggested=\"Yes\",Y37,AE37)","v":11.4},"SF",{"$f":"+Instructions!$B$3","v":"B"},null,{"$f":"+Instructions!$C$22","v":0},11.4,null,"",11.4,0,11.4,0,null,1,11.4,null,null,11.4,0,0,"",null,"X"]
[null,null,null,null,null,null,null,null,null,null,null,null,null,null,null,null,null,null,null,null,null,null,null,null,null,null,null,null,null,null,null,null,null,null,null,null,null,null,"X"]
[null,"Decos",null,null,"0.6\" x 12\"",null,"Pencil Bullnose (Edge Stick)",null,null,null,null,null,null,null,"Stock",null,{"$f":"IF(Suggested=\"Yes\",Y39,AE39)","v":9.25},"EA",{"$f":"+Instructions!$B$3","v":"B"},null,{"$f":"+Instructions!$C$22","v":0},9.25,null,"",9.25,0,9.25,0,null,3,9.25,null,null,9.25,0,0,"",null,"X"]
[]
[null,null,null,"Note:","a) Glazed Porcelain and may be used on floor applications."]
[]
[null,null,"CALPE - Glazed Ceramic Wall",null,null,null,null,null,null,null,null,null,null,null,null,"Item # Lookup:","APCA"]
[null,null,"   ",null,null,null,null,null,null,null,null,null,null,null,null,null,null,null,null,null,null,null,null,null,null,null,null,null,null,null,null,null,null,null,null,null,null,null,"X"]
[null,null,null,"Colors:","Grey          Ivory          Sky          Taupe          White"]
[null,null,null,null,null,null,null,null,null,null,null,null,null,null,null,null,null,null,null,null,null,null,null,null,null,null,null,null,null,null,null,null,null,null,null,null,null,null,"X"]
[null,"Field Tile",null,"Matte:","3\" x 12\"",null,"Field",null,null,null,null,null,null,"5.38 SF/CTN","Stock","a",{"$f":"IF(Suggested=\"Yes\",Y47,AE47)","v":7.8},"SF",{"$f":"+Instructions!$B$3","v":"B"},null,{"$f":"+Instructions!$C$22","v":0},{"$f":"ROUND($Y47*(1-U47)+0.004999,2)","v":7.8},null,"",7.8,{"$f":"+U47","v":0},{"$f":"+V47","v":7.8},{"$f":"(AE47-AA47)/AE47","v":0},null,1,{"$f":"SUM(AH47:AJ47)+AC47","v":7.8},null,null,{"$f":"ROUND(AA47/(1-VLOOKUP(AD47,Group,2,FALSE)),2)","v":7.8},{"$f":"IF(VLOOKUP(AD47,Group,5,FALSE)=\"YES\",VLOOKUP(ROUND(ROUND(AH47,1)-AH47,2),Round,2,FALSE)+VLOOKUP(AD47,Group,6,FALSE),0)","v":0},{"$f":"IF(VLOOKUP(AD47,Group,7,FALSE)=\"\",0,ROUND(AH47-0.04999,1)-AH47+AK47)","v":0},{"$f":"IF(VLOOKUP(AD47,Group,7,FALSE)=\"\",\"\",VLOOKUP(AD47,Group,7,FALSE))","v":""},null,"X"]
[null,null,null,null,null,null,null,null,null,null," ",null,null,null,null,null,null,null,null,null,null,null,null,null,null,null,null,null,null,null,null,null,null,null,null,null,null,null,"X"]
[null,"Decos",null,null,"0.6\" x 12\"",null,"Pencil Bullnose (Edge Stick)",null,null,null,null,null,null,null,"Stock",null,{"$f":"IF(Suggested=\"Yes\",Y49,AE49)","v":9.25},"EA",{"$f":"+Instructions!$B$3","v":"B"},null,{"$f":"+Instructions!$C$22","v":0},{"$f":"ROUND($Y49*(1-U49)+0.004999,2)","v":9.25},null,"",9.25,{"$f":"+U49","v":0},{"$f":"+V49","v":9.25},{"$f":"(AE49-AA49)/AE49","v":0},null,3,{"$f":"SUM(AH49:AJ49)+AC49","v":9.25},null,null,{"$f":"ROUND(AA49/(1-VLOOKUP(AD49,Group,2,FALSE)),2)","v":9.25},{"$f":"IF(VLOOKUP(AD49,Group,5,FALSE)=\"YES\",VLOOKUP(ROUND(ROUND(AH49,1)-AH49,2),Round,2,FALSE)+VLOOKUP(AD49,Group,6,FALSE),0)","v":0},{"$f":"IF(VLOOKUP(AD49,Group,7,FALSE)=\"\",0,ROUND(AH49-0.04999,1)-AH49+AK49)","v":0},{"$f":"IF(VLOOKUP(AD49,Group,7,FALSE)=\"\",\"\",VLOOKUP(AD49,Group,7,FALSE))","v":""},null,"X"]
[]
[null,null,null,"Note:","a) Packaging is changing from 5.38 SF/CTN to 10.76 SF/CTN as inventory with old packaging is depleted."]
[]
[null,null,"DYNAMIC - Glazed Ceramic Wall",null,null,null,null,null,null,null,null,null,null,null,null,"Item # Lookup:","APDY"]
[null,null,"   ",null,null,null,null,null,null,null,null,null,null,null,null,null,null,null,null,null,null,null,null,null,null,null,null,null,null,null,null,null,null,null,null,null,null,null,"X"]
[null,null,null,"Colors:","Celeste          Coral          Mostaza          Neutro          Pearl          Skylight"]
[null,null,null,null,null,null,null,null,null,null,null,null,null,null,null,null,null,null,null,null,null,null,null,null,null,null,null,null,null,null,null,null,null,null,null,null,null,null,"X"]
[null,"Field Tile",null,null,"3\" x 12\"",null,"Field",null,null,null,null,null,null,"5.38 SF/CTN","Stock","a",{"$f":"IF(Suggested=\"Yes\",Y57,AE57)","v":11.65},"SF",{"$f":"+Instructions!$B$3","v":"B"},null,{"$f":"+Instructions!$C$22","v":0},{"$f":"ROUND($Y57*(1-U57)+0.004999,2)","v":11.65},null,"",11.65,{"$f":"+U57","v":0},{"$f":"+V57","v":11.65},{"$f":"(AE57-AA57)/AE57","v":0},null,1,{"$f":"SUM(AH57:AJ57)+AC57","v":11.65},null,null,{"$f":"ROUND(AA57/(1-VLOOKUP(AD57,Group,2,FALSE)),2)","v":11.65},{"$f":"IF(VLOOKUP(AD57,Group,5,FALSE)=\"YES\",VLOOKUP(ROUND(ROUND(AH57,1)-AH57,2),Round,2,FALSE)+VLOOKUP(AD57,Group,6,FALSE),0)","v":0},{"$f":"IF(VLOOKUP(AD57,Group,7,FALSE)=\"\",0,ROUND(AH57-0.04999,1)-AH57+AK57)","v":0},{"$f":"IF(VLOOKUP(AD57,Group,7,FALSE)=\"\",\"\",VLOOKUP(AD57,Group,7,FALSE))","v":""},null,"X"]
[null,"Field Tile",null,null,"6\" x 7\" ",null,"Field - Scales (Escamas)",null,null,null,null,null,null,"5.38 SF/CTN","Stock","a",{"$f":"IF(Suggested=\"Yes\",Y58,AE58)","v":16.55},"SF",{"$f":"+Instructions!$B$3","v":"B"},null,{"$f":"+Instructions!$C$22","v":0},{"$f":"ROUND($Y58*(1-U58)+0.004999,2)","v":16.55},null,"",16.55,0,16.55,0,null,1,16.55,null,null,16.55,0,0,"",null,"X"]
[null,null,null,null,null,null,null,null,null,null,null,null,null,null,null,null,null,null,null,null,null,null,null,null,null,null,null,null,null,null,null,null,null,null,null,null,null,null,"X"]
[null,"Decos",null,null,"0.6\" x 12\"",null,"Pencil Bullnose (Edge Stick)",null,null,null,null,null,null,null,"Stock","a",{"$f":"IF(Suggested=\"Yes\",Y60,AE60)","v":9.25},"EA",{"$f":"+Instructions!$B$3","v":"B"},null,{"$f":"+Instructions!$C$22","v":0},{"$f":"ROUND($Y60*(1-U60)+0.004999,2)","v":9.25},null,"",9.25,{"$f":"+U60","v":0},{"$f":"+V60","v":9.25},{"$f":"(AE60-AA60)/AE60","v":0},null,3,{"$f":"SUM(AH60:AJ60)+AC60","v":9.25},null,null,{"$f":"ROUND(AA60/(1-VLOOKUP(AD60,Group,2,FALSE)),2)","v":9.25},{"$f":"IF(VLOOKUP(AD60,Group,5,FALSE)=\"YES\",VLOOKUP(ROUND(ROUND(AH60,1)-AH60,2),Round,2,FALSE)+VLOOKUP(AD60,Group,6,FALSE),0)","v":0},{"$f":"IF(VLOOKUP(AD60,Group,7,FALSE)=\"\",0,ROUND(AH60-0.04999,1)-AH60+AK60)","v":0},{"$f":"IF(VLOOKUP(AD60,Group,7,FALSE)=\"\",\"\",VLOOKUP(AD60,Group,7,FALSE))","v":""},null,"X"]
[]
[null,null,null,"Note:","a) Crackle Finish, seal prior to grouting."]
[]
[null,null,"FADO - Glazed Ceramic Wall",null,null,null,null,null,null,null,null,null,null,null,null,"Item # Lookup:","APFA"]
[null,null,"   ",null,null,null,null,null,null,null,null,null,null,null,null,null,null,null,null,null,null,null,null,null,null,null,null,null,null,null,null,null,null,null,null,null,null,null,"X"]
[null,null,null,"Colors:","Acqua          Beige          Grey          Sky          White"]
[null,null,null,null,null,null,null,null,null,null,null,null,null,null,null,null,null,null,null,null,null,null,null,null,null,null,null,null,null,null,null,null,null,null,null,null,null,null,"X"]
[null,"Field Tile",null,null,"5\" x 5\"",null,"Field",null,null,null,null,null,null,"5.38 SF/CTN","Stock",null,{"$f":"IF(Suggested=\"Yes\",Y68,AE68)","v":9.65},"SF",{"$f":"+Instructions!$B$3","v":"B"},null,{"$f":"+Instructions!$C$22","v":0},{"$f":"ROUND($Y68*(1-U68)+0.004999,2)","v":9.65},null,"",9.65,{"$f":"+U68","v":0},{"$f":"+V68","v":9.65},{"$f":"(AE68-AA68)/AE68","v":0},null,1,{"$f":"SUM(AH68:AJ68)+AC68","v":9.65},null,null,{"$f":"ROUND(AA68/(1-VLOOKUP(AD68,Group,2,FALSE)),2)","v":9.65},{"$f":"IF(VLOOKUP(AD68,Group,5,FALSE)=\"YES\",VLOOKUP(ROUND(ROUND(AH68,1)-AH68,2),Round,2,FALSE)+VLOOKUP(AD68,Group,6,FALSE),0)","v":0},{"$f":"IF(VLOOKUP(AD68,Group,7,FALSE)=\"\",0,ROUND(AH68-0.04999,1)-AH68+AK68)","v":0},{"$f":"IF(VLOOKUP(AD68,Group,7,FALSE)=\"\",\"\",VLOOKUP(AD68,Group,7,FALSE))","v":""},null,"X"]
[null,"Field Tile",null,null,"2.5\" x 15.6\"",null,"Field",null,null,null,null,null,null,"10.76 SF/CTN","Stock","a",{"$f":"IF(Suggested=\"Yes\",Y69,AE69)","v":9.9},"SF",{"$f":"+Instructions!$B$3","v":"B"},null,{"$f":"+Instructions!$C$22","v":0},9.9,null,"",9.9,0,9.9,0,null,1,9.9,null,null,9.9,0,0,"",null,"X"]
[null,null,null,null,null,null,null,null,null,null,null,null,null,null,null,null,null,null,null,null,null,null,null,null,null,null,null,null,null,null,null,null,null,null,null,null,null,null,"X"]
[null,"Decos",null,null,"5\" x 5\"",null,"Deco Field",null,"Amalia",null,null,null,null,"5.38 SF/CTN","Stock","b",{"$f":"IF(Suggested=\"Yes\",Y71,AE71)","v":10.75},"SF",{"$f":"+Instructions!$B$3","v":"B"},null,{"$f":"+Instructions!$C$22","v":0},{"$f":"ROUND($Y71*(1-U71)+0.004999,2)","v":10.75},null,"",10.75,{"$f":"+U71","v":0},{"$f":"+V71","v":10.75},{"$f":"(AE71-AA71)/AE71","v":0},null,3,{"$f":"SUM(AH71:AJ71)+AC71","v":10.75},null,null,{"$f":"ROUND(AA71/(1-VLOOKUP(AD71,Group,2,FALSE)),2)","v":10.75},{"$f":"IF(VLOOKUP(AD71,Group,5,FALSE)=\"YES\",VLOOKUP(ROUND(ROUND(AH71,1)-AH71,2),Round,2,FALSE)+VLOOKUP(AD71,Group,6,FALSE),0)","v":0},{"$f":"IF(VLOOKUP(AD71,Group,7,FALSE)=\"\",0,ROUND(AH71-0.04999,1)-AH71+AK71)","v":0},{"$f":"IF(VLOOKUP(AD71,Group,7,FALSE)=\"\",\"\",VLOOKUP(AD71,Group,7,FALSE))","v":""},null,"X"]
[null,"Decos",null,null,"5\" x 5\"",null,"Deco Field",null,"Carmo",null,null,null,null,"5.38 SF/CTN","Stock","b",10.75,"SF",{"$f":"+Instructions!$B$3","v":"B"},null,{"$f":"+Instructions!$C$22","v":0},{"$f":"ROUND($Y72*(1-U72)+0.004999,2)","v":10.75},null,"",10.75,{"$f":"+U72","v":0},{"$f":"+V72","v":10.75},{"$f":"(AE72-AA72)/AE72","v":0},null,3,{"$f":"SUM(AH72:AJ72)+AC72","v":10.75},null,null,{"$f":"ROUND(AA72/(1-VLOOKUP(AD72,Group,2,FALSE)),2)","v":10.75},{"$f":"IF(VLOOKUP(AD72,Group,5,FALSE)=\"YES\",VLOOKUP(ROUND(ROUND(AH72,1)-AH72,2),Round,2,FALSE)+VLOOKUP(AD72,Group,6,FALSE),0)","v":0},{"$f":"IF(VLOOKUP(AD72,Group,7,FALSE)=\"\",0,ROUND(AH72-0.04999,1)-AH72+AK72)","v":0},{"$f":"IF(VLOOKUP(AD72,Group,7,FALSE)=\"\",\"\",VLOOKUP(AD72,Group,7,FALSE))","v":""},null,"X"]
[null,"Decos",null,null,"5\" x 5\"",null,"Deco Field",null,"Mariza",null,null,null,null,"5.38 SF/CTN","Stock","b",10.75,"SF",{"$f":"+Instructions!$B$3","v":"B"},null,{"$f":"+Instructions!$C$22","v":0},10.75,null,"",10.75,0,10.75,0,null,3,10.75,null,null,10.75,0,0,"",null,"X"]
[null,"Decos",null,null,"5\" x 5\"",null,"Deco Field",null,"Moura",null,null,null,null,"5.38 SF/CTN","Stock","b",10.75,"SF",{"$f":"+Instructions!$B$3","v":"B"},null,{"$f":"+Instructions!$C$22","v":0},10.75,null,"",10.75,0,10.75,0,null,3,10.75,null,null,10.75,0,0,"",null,"X"]
[null,"Decos",null,null,"5\" x 5\"",null,"Deco Field",null,"Pontes",null,null,null,null,"5.38 SF/CTN","Stock","b",10.75,"SF",{"$f":"+Instructions!$B$3","v":"B"},null,{"$f":"+Instructions!$C$22","v":0},10.75,null,"",10.75,0,10.75,0,null,3,10.75,null,null,10.75,0,0,"",null,"X"]
[null,"Decos",null,null,"5\" x 5\"",null,"Deco Field",null,"Tavares",null,null,null,null,"5.38 SF/CTN","Stock","b",10.75,"SF",{"$f":"+Instructions!$B$3","v":"B"},null,{"$f":"+Instructions!$C$22","v":0},10.75,null,"",10.75,0,10.75,0,null,3,10.75,null,null,10.75,0,0,"",null,"X"]
[]
[null,"Trim",null,null,"0.6\" x 5\"",null,"Pencil Bullnose (Edge Stick)",null,null,null,null,null,null,null,"Stock",null,{"$f":"IF(Suggested=\"Yes\",Y78,AE78)","v":7.3},"EA",{"$f":"+Instructions!$B$3","v":"B"},null,{"$f":"+Instructions!$C$22","v":0},{"$f":"ROUND($Y78*(1-U78)+0.004999,2)","v":7.3},null,"",7.3,{"$f":"+U78","v":0},{"$f":"+V78","v":7.3},{"$f":"(AE78-AA78)/AE78","v":0},null,2,{"$f":"SUM(AH78:AJ78)+AC78","v":7.3},null,null,{"$f":"ROUND(AA78/(1-VLOOKUP(AD78,Group,2,FALSE)),2)","v":7.3},{"$f":"IF(VLOOKUP(AD78,Group,5,FALSE)=\"YES\",VLOOKUP(ROUND(ROUND(AH78,1)-AH78,2),Round,2,FALSE)+VLOOKUP(AD78,Group,6,FALSE),0)","v":0},{"$f":"IF(VLOOKUP(AD78,Group,7,FALSE)=\"\",0,ROUND(AH78-0.04999,1)-AH78+AK78)","v":0},{"$f":"IF(VLOOKUP(AD78,Group,7,FALSE)=\"\",\"\",VLOOKUP(AD78,Group,7,FALSE))","v":""},null,"X"]
[]
[null,null,null,"Notes:","a) Packaging is changing from 10.76 SF/CTN to 11.08 SF/CTN as inventory with old packaging is depleted."]
[null,null,null,null,"b) 30 pieces per carton."]
[]
[null,null,"GRUNGE - Glazed Ceramic Wall",null,null,null,null,null,null,null,null,null,null,null,null,"Item # Lookup:","APGR"]
[null,null,"   ",null,null,null,null,null,null,null,null,null,null,null,null,null,null,null,null,null,null,null,null,null,null,null,null,null,null,null,null,null,null,null,null,null,null,null,"X"]
[null,null,null,"Colors:","Aqua          Blue          Grey          Iron          Oxid"]
[null,null,null,null,null,null,null,null,null,null,null,null,null,null,null,null,null,null,null,null,null,null,null,null,null,null,null,null,null,null,null,null,null,null,null,null,null,null,"X"]
[null,"Field Tile",null,null,"3\" x 12\"",null,"Field",null,null,null,null,null,null,"4.84 SF/CTN","Stock",null,{"$f":"IF(Suggested=\"Yes\",Y87,AE87)","v":9.9499999999999993},"SF",{"$f":"+Instructions!$B$3","v":"B"},null,{"$f":"+Instructions!$C$22","v":0},{"$f":"ROUND($Y87*(1-U87)+0.004999,2)","v":9.9499999999999993},null,"",9.9499999999999993,{"$f":"+U87","v":0},{"$f":"+V87","v":9.9499999999999993},{"$f":"(AE87-AA87)/AE87","v":0},null,1,{"$f":"SUM(AH87:AJ87)+AC87","v":9.9499999999999993},null,null,{"$f":"ROUND(AA87/(1-VLOOKUP(AD87,Group,2,FALSE)),2)","v":9.9499999999999993},{"$f":"IF(VLOOKUP(AD87,Group,5,FALSE)=\"YES\",VLOOKUP(ROUND(ROUND(AH87,1)-AH87,2),Round,2,FALSE)+VLOOKUP(AD87,Group,6,FALSE),0)","v":0},{"$f":"IF(VLOOKUP(AD87,Group,7,FALSE)=\"\",0,ROUND(AH87-0.04999,1)-AH87+AK87)","v":0},{"$f":"IF(VLOOKUP(AD87,Group,7,FALSE)=\"\",\"\",VLOOKUP(AD87,Group,7,FALSE))","v":""},null,"X"]
[null,null,null,null,null,null,null,null,null,null,null,null,null,null,null,null,null,null,null,null,null,null,null,null,null,null,null,null,null,null,null,null,null,null,null,null,null,null,"X"]
[null,"Decos",null,null,"0.6\" x 12\"",null,"Pencil Bullnose (Edge Stick)",null,null,null,null,null,null,null,"Stock",null,{"$f":"IF(Suggested=\"Yes\",Y89,AE89)","v":9.25},"EA",{"$f":"+Instructions!$B$3","v":"B"},null,{"$f":"+Instructions!$C$22","v":0},{"$f":"ROUND($Y89*(1-U89)+0.004999,2)","v":9.25},null,"",9.25,{"$f":"+U89","v":0},{"$f":"+V89","v":9.25},{"$f":"(AE89-AA89)/AE89","v":0},null,3,{"$f":"SUM(AH89:AJ89)+AC89","v":9.25},null,null,{"$f":"ROUND(AA89/(1-VLOOKUP(AD89,Group,2,FALSE)),2)","v":9.25},{"$f":"IF(VLOOKUP(AD89,Group,5,FALSE)=\"YES\",VLOOKUP(ROUND(ROUND(AH89,1)-AH89,2),Round,2,FALSE)+VLOOKUP(AD89,Group,6,FALSE),0)","v":0},{"$f":"IF(VLOOKUP(AD89,Group,7,FALSE)=\"\",0,ROUND(AH89-0.04999,1)-AH89+AK89)","v":0},{"$f":"IF(VLOOKUP(AD89,Group,7,FALSE)=\"\",\"\",VLOOKUP(AD89,Group,7,FALSE))","v":""},null,"X"]
[null,null,null,null,null,null,null,null,null,null,null,null,null,null,null,null,null,null,null,null,null,null,null,null,null,null,null,null,null,null,null,null,null,null,null,null,null,null,"X"]
[null,null,"HAMPTONS - Glazed Ceramic Wall",null,null,null,null,null,null,null,null,null,null,null,null,"Item # Lookup:","APHA"]
[null,null,"   ",null,null,null,null,null,null,null,null,null,null,null,null,null,null,null,null,null,null,null,null,null,null,null,null,null,null,null,null,null,null,null,null,null,null,null,"X"]
[null,null,null,"Colors:","Acqua",null,"Mist",null,"Smoke",null,"Victorian Green"]
[null,null,null,null,"Cherry",null,"Night",null,"Snow"]
[null,null,null,null,null,null,null,null,null,null,null,null,null,null,null,null,null,null,null,null,null,null,null,null,null,null,null,null,null,null,null,null,null,null,null,null,null,null,"X"]
[null,"Field Tile",null,"Glossy:","4\" x 5\"",null,"Field - Triangle",null,null,"Kirk",null,null,null,"5.27 SF/CTN","Stock",null,{"$f":"IF(Suggested=\"Yes\",Y96,AE96)","v":18.899999999999999},"SF",{"$f":"+Instructions!$B$3","v":"B"},null,{"$f":"+Instructions!$C$22","v":0},{"$f":"ROUND($Y96*(1-U96)+0.004999,2)","v":18.899999999999999},null,"",18.899999999999999,{"$f":"+U96","v":0},{"$f":"+V96","v":18.899999999999999},{"$f":"(AE96-AA96)/AE96","v":0},null,1,{"$f":"SUM(AH96:AJ96)+AC96","v":18.899999999999999},null,null,{"$f":"ROUND(AA96/(1-VLOOKUP(AD96,Group,2,FALSE)),2)","v":18.899999999999999},{"$f":"IF(VLOOKUP(AD96,Group,5,FALSE)=\"YES\",VLOOKUP(ROUND(ROUND(AH96,1)-AH96,2),Round,2,FALSE)+VLOOKUP(AD96,Group,6,FALSE),0)","v":0},{"$f":"IF(VLOOKUP(AD96,Group,7,FALSE)=\"\",0,ROUND(AH96-0.04999,1)-AH96+AK96)","v":0},{"$f":"IF(VLOOKUP(AD96,Group,7,FALSE)=\"\",\"\",VLOOKUP(AD96,Group,7,FALSE))","v":""},null,"X"]
[null,"Field Tile",null,null,"2\" x 6\"",null,"Field - Arabasque",null,null,"Havens",null,null,null,"5.38 SF/CTN","Stock",null,{"$f":"IF(Suggested=\"Yes\",Y97,AE97)","v":16.899999999999999},"SF",{"$f":"+Instructions!$B$3","v":"B"},null,{"$f":"+Instructions!$C$22","v":0},16.899999999999999,null,"",16.899999999999999,0,16.899999999999999,0,null,1,16.899999999999999,null,null,16.899999999999999,0,0,"",null,"X"]
[null,"Field Tile",null,null,"2\" x 7\"",null,"Field - Picket",null,null,"Gin",null,null,null,"5.81 SF/CTN","Stock",null,{"$f":"IF(Suggested=\"Yes\",Y98,AE98)","v":16.7},"SF",{"$f":"+Instructions!$B$3","v":"B"},null,{"$f":"+Instructions!$C$22","v":0},16.7,null,"",16.7,0,16.7,0,null,1,16.7,null,null,16.7,0,0,"",null,"X"]
[]
[null,null,"MEMORIES - Glazed Ceramic Wall",null,null,null,null,null,null,null,null,null,null,null,null,"Item # Lookup:","APME"]
[null,null,"   ",null,null,null,null,null,null,null,null,null,null,null,null,null,null,null,null,null,null,null,null,null,null,null,null,null,null,null,null,null,null,null,null,null,null,null,"X"]
[null,null,null,"Colors:","Acqua          Mist          Night          Smoke          Victorian Green          White"]
[null,null,null,null,null,null,null,null,null,null,null,null,null,null,null,null,null,null,null,null,null,null,null,null,null,null,null,null,null,null,null,null,null,null,null,null,null,null,"X"]
[null,"Field Tile",null,"Glossy:","2.5\" x 5\"",null,"Field - Rectangle",null,null,"Memories",null,null,null,"5.38 SF/CTN","Stock",null,{"$f":"IF(Suggested=\"Yes\",Y104,AE104)","v":11.45},"SF",{"$f":"+Instructions!$B$3","v":"B"},null,{"$f":"+Instructions!$C$22","v":0},{"$f":"ROUND($Y104*(1-U104)+0.004999,2)","v":11.45},null,"",11.45,{"$f":"+U104","v":0},{"$f":"+V104","v":11.45},{"$f":"(AE104-AA104)/AE104","v":0},null,1,{"$f":"SUM(AH104:AJ104)+AC104","v":11.45},null,null,{"$f":"ROUND(AA104/(1-VLOOKUP(AD104,Group,2,FALSE)),2)","v":11.45},{"$f":"IF(VLOOKUP(AD104,Group,5,FALSE)=\"YES\",VLOOKUP(ROUND(ROUND(AH104,1)-AH104,2),Round,2,FALSE)+VLOOKUP(AD104,Group,6,FALSE),0)","v":0},{"$f":"IF(VLOOKUP(AD104,Group,7,FALSE)=\"\",0,ROUND(AH104-0.04999,1)-AH104+AK104)","v":0},{"$f":"IF(VLOOKUP(AD104,Group,7,FALSE)=\"\",\"\",VLOOKUP(AD104,Group,7,FALSE))","v":""},null,"X"]
[null,"Field Tile",null,null,"5\" x 5\"",null,"Field - Scales",null,null,"Smiles",null,null,null,"3.55 SF/CTN","Stock",null,{"$f":"IF(Suggested=\"Yes\",Y105,AE105)","v":15.75},"SF",{"$f":"+Instructions!$B$3","v":"B"},null,{"$f":"+Instructions!$C$22","v":0},15.75,null,"",15.75,0,15.75,0,null,1,15.75,null,null,15.75,0,0,"",null,"X"]
[null,"Field Tile",null,null,"4\" x 6\"",null,"Field - Diamond",null,null,"Looks",null,null,null,"5.38 SF/CTN","Stock",null,{"$f":"IF(Suggested=\"Yes\",Y106,AE106)","v":15.95},"SF",{"$f":"+Instructions!$B$3","v":"B"},null,{"$f":"+Instructions!$C$22","v":0},15.95,null,"",15.95,0,15.95,0,null,1,15.95,null,null,15.95,0,0,"",null,"X"]
[]
[null,"Trim",null,null,"0.6\" x 12\"",null,"Pencil Bullnose (Edge Stick)",null,null,null,null,null,null,null,"Stock",null,{"$f":"IF(Suggested=\"Yes\",Y108,AE108)","v":7.3},"EA",{"$f":"+Instructions!$B$3","v":"B"},null,{"$f":"+Instructions!$C$22","v":0},{"$f":"ROUND($Y108*(1-U108)+0.004999,2)","v":7.3},null,"",7.3,{"$f":"+U108","v":0},{"$f":"+V108","v":7.3},{"$f":"(AE108-AA108)/AE108","v":0},null,2,{"$f":"SUM(AH108:AJ108)+AC108","v":7.3},null,null,{"$f":"ROUND(AA108/(1-VLOOKUP(AD108,Group,2,FALSE)),2)","v":7.3},{"$f":"IF(VLOOKUP(AD108,Group,5,FALSE)=\"YES\",VLOOKUP(ROUND(ROUND(AH108,1)-AH108,2),Round,2,FALSE)+VLOOKUP(AD108,Group,6,FALSE),0)","v":0},{"$f":"IF(VLOOKUP(AD108,Group,7,FALSE)=\"\",0,ROUND(AH108-0.04999,1)-AH108+AK108)","v":0},{"$f":"IF(VLOOKUP(AD108,Group,7,FALSE)=\"\",\"\",VLOOKUP(AD108,Group,7,FALSE))","v":""},null,"X"]
[]
[null,null,"MURUS - Glazed Porcelain Wall",null,null,null,null,null,null,null,null,null,null,null,null,"Item # Lookup:","APMU"]
[null,null,"   ",null,null,null,null,null,null,null,null,null,null,null,null,null,null,null,null,null,null,null,null,null,null,null,null,null,null,null,null,null,null,null,null,null,null,null,"X"]
[null,null,null,"Colors:","Griseo          Nix          Nocta          Oceanum          Terra          Viridi"]
[null,null,null,null,null,null,null,null,null,null,null,null,null,null,null,null,null,null,null,null,null,null,null,null,null,null,null,null,null,null,null,null,null,null,null,null,null,null,"X"]
[null,"Field Tile",null,"Glossy:","3\" x 11\"",null,"Field",null,null,null,null,null,null,"10.55 SF/CTN","Stock","a",{"$f":"IF(Suggested=\"Yes\",Y114,AE114)","v":10.6},"SF",{"$f":"+Instructions!$B$3","v":"B"},null,{"$f":"+Instructions!$C$22","v":0},{"$f":"ROUND($Y114*(1-U114)+0.004999,2)","v":10.6},null,"",10.6,{"$f":"+U114","v":0},{"$f":"+V114","v":10.6},{"$f":"(AE114-AA114)/AE114","v":0},null,1,{"$f":"SUM(AH114:AJ114)+AC114","v":10.6},null,null,{"$f":"ROUND(AA114/(1-VLOOKUP(AD114,Group,2,FALSE)),2)","v":10.6},{"$f":"IF(VLOOKUP(AD114,Group,5,FALSE)=\"YES\",VLOOKUP(ROUND(ROUND(AH114,1)-AH114,2),Round,2,FALSE)+VLOOKUP(AD114,Group,6,FALSE),0)","v":0},{"$f":"IF(VLOOKUP(AD114,Group,7,FALSE)=\"\",0,ROUND(AH114-0.04999,1)-AH114+AK114)","v":0},{"$f":"IF(VLOOKUP(AD114,Group,7,FALSE)=\"\",\"\",VLOOKUP(AD114,Group,7,FALSE))","v":""},null,"X"]
[]
[null,null,null,"Note:","a) Packaging is changing from 10.55 SF/CTN to 6.35 SF/CTN as inventory with old packaging is depleted."]
[null,null,"ONYX SLOW - Glazed Ceramic Wall & Glazed Porcelain Floor",null,null,null,null,null,null,null,null,null,null,null,null,"Item # Lookup:","APOS"]
[null,null,"   ",null,null,null,null,null,null,null,null,null,null,null,null,null,null,null,null,null,null,null,null,null,null,null,null,null,null,null,null,null,null,null,null,null,null,null,"X"]
[null,null,null,"Colors:","Onyx Slow"]
[null,null,null,null,null,null,null,null,null,null,null,null,null,null,null,null,null,null,null,null,null,null,null,null,null,null,null,null,null,null,null,null,null,null,null,null,null,null,"X"]
[null,"Field Tile",null,null,"3\" x 12\"",null,"Field",null,null,null,null,null,null,"10.76 SF/CTN","Stock",null,{"$f":"IF(Suggested=\"Yes\",Y121,AE121)","v":7.8},"SF",{"$f":"+Instructions!$B$3","v":"B"},null,{"$f":"+Instructions!$C$22","v":0},{"$f":"ROUND($Y121*(1-U121)+0.004999,2)","v":7.8},null,"",7.8,{"$f":"+U121","v":0},{"$f":"+V121","v":7.8},{"$f":"(AE121-AA121)/AE121","v":0},null,1,{"$f":"SUM(AH121:AJ121)+AC121","v":7.8},null,null,{"$f":"ROUND(AA121/(1-VLOOKUP(AD121,Group,2,FALSE)),2)","v":7.8},{"$f":"IF(VLOOKUP(AD121,Group,5,FALSE)=\"YES\",VLOOKUP(ROUND(ROUND(AH121,1)-AH121,2),Round,2,FALSE)+VLOOKUP(AD121,Group,6,FALSE),0)","v":0},{"$f":"IF(VLOOKUP(AD121,Group,7,FALSE)=\"\",0,ROUND(AH121-0.04999,1)-AH121+AK121)","v":0},{"$f":"IF(VLOOKUP(AD121,Group,7,FALSE)=\"\",\"\",VLOOKUP(AD121,Group,7,FALSE))","v":""},null,"X"]
[null,"Field Tile",null,null,"5.5\" x 6.3\"",null,"Field - Hex",null,null,null,null,null,null,"3.55 SF/CTN","Stock","a",{"$f":"IF(Suggested=\"Yes\",Y122,AE122)","v":11.4},"SF",{"$f":"+Instructions!$B$3","v":"B"},null,{"$f":"+Instructions!$C$22","v":0},11.4,null,"",11.4,0,11.4,0,null,1,11.4,null,null,11.4,0,0,"",null,"X"]
[null,null,null,null,null,null,null,null,null,null,null,null,null,null,null,null,null,null,null,null,null,null,null,null,null,null,null,null,null,null,null,null,null,null,null,null,null,null,"X"]
[null,"Decos",null,null,"0.6\" x 12\"",null,"Pencil Bullnose (Edge Stick)",null,null,null,null,null,null,null,"Stock",null,{"$f":"IF(Suggested=\"Yes\",Y124,AE124)","v":9.25},"EA",{"$f":"+Instructions!$B$3","v":"B"},null,{"$f":"+Instructions!$C$22","v":0},{"$f":"ROUND($Y124*(1-U124)+0.004999,2)","v":9.25},null,"",9.25,{"$f":"+U124","v":0},{"$f":"+V124","v":9.25},{"$f":"(AE124-AA124)/AE124","v":0},null,3,{"$f":"SUM(AH124:AJ124)+AC124","v":9.25},null,null,{"$f":"ROUND(AA124/(1-VLOOKUP(AD124,Group,2,FALSE)),2)","v":9.25},{"$f":"IF(VLOOKUP(AD124,Group,5,FALSE)=\"YES\",VLOOKUP(ROUND(ROUND(AH124,1)-AH124,2),Round,2,FALSE)+VLOOKUP(AD124,Group,6,FALSE),0)","v":0},{"$f":"IF(VLOOKUP(AD124,Group,7,FALSE)=\"\",0,ROUND(AH124-0.04999,1)-AH124+AK124)","v":0},{"$f":"IF(VLOOKUP(AD124,Group,7,FALSE)=\"\",\"\",VLOOKUP(AD124,Group,7,FALSE))","v":""},null,"X"]
[]
[null,null,null,"Note:","a) Glazed Porcelain and may be used on floor applications."]
[]
[null,null,"SAVANNAH - Glazed Ceramic Wall",null,null,null,null,null,null,null,null,null,null,null,null,"Item # Lookup:","APSA"]
[null,null,"   ",null,null,null,null,null,null,null,null,null,null,null,null,null,null,null,null,null,null,null,null,null,null,null,null,null,null,null,null,null,null,null,null,null,null,null,"X"]
[null,null,null,"Colors:","Berilo          Grey          White"]
[null,null,null,null,null,null,null,null,null,null,null,null,null,null,null,null,null,null,null,null,null,null,null,null,null,null,null,null,null,null,null,null,null,null,null,null,null,null,"X"]
[null,"Field Tile",null,null,"4\" x 4\"",null,"Field",null,null,null,null,null,null,"5.38 SF/CTN","Stock",null,{"$f":"IF(Suggested=\"Yes\",Y132,AE132)","v":11.7},"SF",{"$f":"+Instructions!$B$3","v":"B"},null,{"$f":"+Instructions!$C$22","v":0},{"$f":"ROUND($Y132*(1-U132)+0.004999,2)","v":11.7},null,"",11.7,{"$f":"+U132","v":0},{"$f":"+V132","v":11.7},{"$f":"(AE132-AA132)/AE132","v":0},null,1,{"$f":"SUM(AH132:AJ132)+AC132","v":11.7},null,null,{"$f":"ROUND(AA132/(1-VLOOKUP(AD132,Group,2,FALSE)),2)","v":11.7},{"$f":"IF(VLOOKUP(AD132,Group,5,FALSE)=\"YES\",VLOOKUP(ROUND(ROUND(AH132,1)-AH132,2),Round,2,FALSE)+VLOOKUP(AD132,Group,6,FALSE),0)","v":0},{"$f":"IF(VLOOKUP(AD132,Group,7,FALSE)=\"\",0,ROUND(AH132-0.04999,1)-AH132+AK132)","v":0},{"$f":"IF(VLOOKUP(AD132,Group,7,FALSE)=\"\",\"\",VLOOKUP(AD132,Group,7,FALSE))","v":""},null,"X"]
[null,"Field Tile",null,null,"2\" x 10\"",null,"Field",null,null,null,null,null,null,"6.46 SF/CTN","Stock",null,{"$f":"IF(Suggested=\"Yes\",Y133,AE133)","v":12.8},"SF",{"$f":"+Instructions!$B$3","v":"B"},null,{"$f":"+Instructions!$C$22","v":0},{"$f":"ROUND($Y133*(1-U133)+0.004999,2)","v":12.8},null,"",12.8,{"$f":"+U133","v":0},{"$f":"+V133","v":12.8},{"$f":"(AE133-AA133)/AE133","v":0},null,1,{"$f":"SUM(AH133:AJ133)+AC133","v":12.8},null,null,{"$f":"ROUND(AA133/(1-VLOOKUP(AD133,Group,2,FALSE)),2)","v":12.8},{"$f":"IF(VLOOKUP(AD133,Group,5,FALSE)=\"YES\",VLOOKUP(ROUND(ROUND(AH133,1)-AH133,2),Round,2,FALSE)+VLOOKUP(AD133,Group,6,FALSE),0)","v":0},{"$f":"IF(VLOOKUP(AD133,Group,7,FALSE)=\"\",0,ROUND(AH133-0.04999,1)-AH133+AK133)","v":0},{"$f":"IF(VLOOKUP(AD133,Group,7,FALSE)=\"\",\"\",VLOOKUP(AD133,Group,7,FALSE))","v":""},null,"X"]
[]
[null,"Trim",null,null,".6\" x 10\"",null,"Pencil Bullnose (Edge Stick)",null,null,null,null,null,null,null,"Stock",null,{"$f":"IF(Suggested=\"Yes\",Y135,AE135)","v":9.8000000000000007},"EA",{"$f":"+Instructions!$B$3","v":"B"},null,{"$f":"+Instructions!$C$22","v":0},{"$f":"ROUND($Y135*(1-U135)+0.004999,2)","v":9.8000000000000007},null,"",9.8000000000000007,{"$f":"+U135","v":0},{"$f":"+V135","v":9.8000000000000007},{"$f":"(AE135-AA135)/AE135","v":0},null,2,{"$f":"SUM(AH135:AJ135)+AC135","v":9.8000000000000007},null,null,{"$f":"ROUND(AA135/(1-VLOOKUP(AD135,Group,2,FALSE)),2)","v":9.8000000000000007},{"$f":"IF(VLOOKUP(AD135,Group,5,FALSE)=\"YES\",VLOOKUP(ROUND(ROUND(AH135,1)-AH135,2),Round,2,FALSE)+VLOOKUP(AD135,Group,6,FALSE),0)","v":0},{"$f":"IF(VLOOKUP(AD135,Group,7,FALSE)=\"\",0,ROUND(AH135-0.04999,1)-AH135+AK135)","v":0},{"$f":"IF(VLOOKUP(AD135,Group,7,FALSE)=\"\",\"\",VLOOKUP(AD135,Group,7,FALSE))","v":""},null,"X"]
[]
[null,null,"SEVILLE - Glazed Ceramic Wall",null,null,null,null,null,null,null,null,null,null,null,null,"Item # Lookup:","APSE"]
[null,null,"   ",null,null,null,null,null,null,null,null,null,null,null,null,null,null,null,null,null,null,null,null,null,null,null,null,null,null,null,null,null,null,null,null,null,null,null,"X"]
[null,null,null,"Colors:","Black          Bone          Green          Grey          Honey          Indigo          Snow          Turquoise"]
[null,null,null,null,null,null,null,null,null,null,null,null,null,null,null,null,null,null,null,null,null,null,null,null,null,null,null,null,null,null,null,null,null,null,null,null,null,null,"X"]
[null,"Field Tile",null,null,"2.5\" x 8\"",null,"Field",null,null,null,null,null,null,"5.38 SF/CTN","Stock",null,{"$f":"IF(Suggested=\"Yes\",Y141,AE141)","v":9.3000000000000007},"SF",{"$f":"+Instructions!$B$3","v":"B"},null,{"$f":"+Instructions!$C$22","v":0},{"$f":"ROUND($Y141*(1-U141)+0.004999,2)","v":9.3000000000000007},null,"",9.3000000000000007,{"$f":"+U141","v":0},{"$f":"+V141","v":9.3000000000000007},{"$f":"(AE141-AA141)/AE141","v":0},null,1,{"$f":"SUM(AH141:AJ141)+AC141","v":9.3000000000000007},null,null,{"$f":"ROUND(AA141/(1-VLOOKUP(AD141,Group,2,FALSE)),2)","v":9.3000000000000007},{"$f":"IF(VLOOKUP(AD141,Group,5,FALSE)=\"YES\",VLOOKUP(ROUND(ROUND(AH141,1)-AH141,2),Round,2,FALSE)+VLOOKUP(AD141,Group,6,FALSE),0)","v":0},{"$f":"IF(VLOOKUP(AD141,Group,7,FALSE)=\"\",0,ROUND(AH141-0.04999,1)-AH141+AK141)","v":0},{"$f":"IF(VLOOKUP(AD141,Group,7,FALSE)=\"\",\"\",VLOOKUP(AD141,Group,7,FALSE))","v":""},null,"X"]
[null,"Field Tile",null,null,"4\" x 4\"",null,"Field",null,null,null,null,null,null,"5.38 SF/CTN","Stock",null,{"$f":"IF(Suggested=\"Yes\",Y142,AE142)","v":9.3000000000000007},"SF",{"$f":"+Instructions!$B$3","v":"B"},null,{"$f":"+Instructions!$C$22","v":0},9.3000000000000007,null,"",9.3000000000000007,0,9.3000000000000007,0,null,1,9.3000000000000007,null,null,9.3000000000000007,0,0,"",null,"X"]
[null,null,null,null,null,null,null,null,null,null,null,null,null,null,null,null,null,null,null,null,null,null,null,null,null,null,null,null,null,null,null,null,null,null,null,null,null,null,"X"]
[null,"Decos",null,null,"0.5\" x 8\"",null,"Pencil Bullnose (Edge Stick)",null,null,null,null,null,null,null,"Stock",null,{"$f":"IF(Suggested=\"Yes\",Y144,AE144)","v":6.15},"EA",{"$f":"+Instructions!$B$3","v":"B"},null,{"$f":"+Instructions!$C$22","v":0},{"$f":"ROUND($Y144*(1-U144)+0.004999,2)","v":6.15},null,"",6.15,{"$f":"+U144","v":0},{"$f":"+V144","v":6.15},{"$f":"(AE144-AA144)/AE144","v":0},null,3,{"$f":"SUM(AH144:AJ144)+AC144","v":6.15},null,null,{"$f":"ROUND(AA144/(1-VLOOKUP(AD144,Group,2,FALSE)),2)","v":6.15},{"$f":"IF(VLOOKUP(AD144,Group,5,FALSE)=\"YES\",VLOOKUP(ROUND(ROUND(AH144,1)-AH144,2),Round,2,FALSE)+VLOOKUP(AD144,Group,6,FALSE),0)","v":0},{"$f":"IF(VLOOKUP(AD144,Group,7,FALSE)=\"\",0,ROUND(AH144-0.04999,1)-AH144+AK144)","v":0},{"$f":"IF(VLOOKUP(AD144,Group,7,FALSE)=\"\",\"\",VLOOKUP(AD144,Group,7,FALSE))","v":""},null,"X"]
[]
[null,null,"SWITCH - Glazed Ceramic Wall & Glazed Porcelain Floor (see note)",null,null,null,null,null,null,null,null,null,null,null,null,"Item # Lookup:","APSW"]
[null,null,"   ",null,null,null,null,null,null,null,null,null,null,null,null,null,null,null,null,null,null,null,null,null,null,null,null,null,null,null,null,null,null,null,null,null,null,null,"X"]
[null,null,null,"Colors:","Blue          Dark Blue          Graphite          Grey          Victorian Green          White"]
[null,null,null,null,null,null,null,null,null,null,null,null,null,null,null,null,null,null,null,null,null,null,null,null,null,null,null,null,null,null,null,null,null,null,null,null,null,null,"X"]
[null,"Field Tile",null,"Matte:","4\" Hex",null,"Field - Hexagon",null,null,null,null,null,null,"3.70 SF/CTN","Stock","a",{"$f":"IF(Suggested=\"Yes\",Y150,AE150)","v":16.600000000000001},"SF",{"$f":"+Instructions!$B$3","v":"B"},null,{"$f":"+Instructions!$C$22","v":0},{"$f":"ROUND($Y150*(1-U150)+0.004999,2)","v":16.600000000000001},null,"",16.600000000000001,{"$f":"+U150","v":0},{"$f":"+V150","v":16.600000000000001},{"$f":"(AE150-AA150)/AE150","v":0},null,1,{"$f":"SUM(AH150:AJ150)+AC150","v":16.600000000000001},null,null,{"$f":"ROUND(AA150/(1-VLOOKUP(AD150,Group,2,FALSE)),2)","v":16.600000000000001},{"$f":"IF(VLOOKUP(AD150,Group,5,FALSE)=\"YES\",VLOOKUP(ROUND(ROUND(AH150,1)-AH150,2),Round,2,FALSE)+VLOOKUP(AD150,Group,6,FALSE),0)","v":0},{"$f":"IF(VLOOKUP(AD150,Group,7,FALSE)=\"\",0,ROUND(AH150-0.04999,1)-AH150+AK150)","v":0},{"$f":"IF(VLOOKUP(AD150,Group,7,FALSE)=\"\",\"\",VLOOKUP(AD150,Group,7,FALSE))","v":""},null,"X"]
[null,"Field Tile",null,null,"2\" x 10\"",null,"Field - Picket",null,null,null,null,null,null,"2.37 SF/CTN","Stock",null,{"$f":"IF(Suggested=\"Yes\",Y151,AE151)","v":11.3},"SF",{"$f":"+Instructions!$B$3","v":"B"},null,{"$f":"+Instructions!$C$22","v":0},{"$f":"ROUND($Y151*(1-U151)+0.004999,2)","v":11.3},null,"",11.3,0,11.3,0,null,1,11.3,null,null,11.3,0,0,"",null,"X"]
[null,null,null,null,null,null,null,null,null,null,null,null,null,null,null,null,null,null,null,null,null,null,null,null,null,null,null,null,null,null,null,null,null,null,null,null,null,null,"X"]
[null,"Decos",null,null,"0.6\" x 12\"",null,"Pencil Bullnose (Edge Stick)",null,null,null,null,null,null,null,"Stock",null,{"$f":"IF(Suggested=\"Yes\",Y153,AE153)","v":9.25},"EA",{"$f":"+Instructions!$B$3","v":"B"},null,{"$f":"+Instructions!$C$22","v":0},{"$f":"ROUND($Y153*(1-U153)+0.004999,2)","v":9.25},null,"",9.25,{"$f":"+U153","v":0},{"$f":"+V153","v":9.25},{"$f":"(AE153-AA153)/AE153","v":0},null,3,{"$f":"SUM(AH153:AJ153)+AC153","v":9.25},null,null,{"$f":"ROUND(AA153/(1-VLOOKUP(AD153,Group,2,FALSE)),2)","v":9.25},{"$f":"IF(VLOOKUP(AD153,Group,5,FALSE)=\"YES\",VLOOKUP(ROUND(ROUND(AH153,1)-AH153,2),Round,2,FALSE)+VLOOKUP(AD153,Group,6,FALSE),0)","v":0},{"$f":"IF(VLOOKUP(AD153,Group,7,FALSE)=\"\",0,ROUND(AH153-0.04999,1)-AH153+AK153)","v":0},{"$f":"IF(VLOOKUP(AD153,Group,7,FALSE)=\"\",\"\",VLOOKUP(AD153,Group,7,FALSE))","v":""},null,"X"]
[]
[null,"Field Tile",null,"Gloss:","2.5\" x 5\"",null,"Field",null,null,null,null,null,null,"4.88 SF/CTN","Stock",null,{"$f":"IF(Suggested=\"Yes\",Y155,AE155)","v":10.25},"SF",{"$f":"+Instructions!$B$3","v":"B"},null,{"$f":"+Instructions!$C$22","v":0},{"$f":"ROUND($Y155*(1-U155)+0.004999,2)","v":10.25},null,"",10.25,{"$f":"+U155","v":0},{"$f":"+V155","v":10.25},{"$f":"(AE155-AA155)/AE155","v":0},null,1,{"$f":"SUM(AH155:AJ155)+AC155","v":10.25},null,null,{"$f":"ROUND(AA155/(1-VLOOKUP(AD155,Group,2,FALSE)),2)","v":10.25},{"$f":"IF(VLOOKUP(AD155,Group,5,FALSE)=\"YES\",VLOOKUP(ROUND(ROUND(AH155,1)-AH155,2),Round,2,FALSE)+VLOOKUP(AD155,Group,6,FALSE),0)","v":0},{"$f":"IF(VLOOKUP(AD155,Group,7,FALSE)=\"\",0,ROUND(AH155-0.04999,1)-AH155+AK155)","v":0},{"$f":"IF(VLOOKUP(AD155,Group,7,FALSE)=\"\",\"\",VLOOKUP(AD155,Group,7,FALSE))","v":""},null,"X"]
[null,"Field Tile",null,null,"2\" x 10\"",null,"Field - Picket",null,null,null,null,null,null,"2.37 SF/CTN","Stock",null,{"$f":"IF(Suggested=\"Yes\",Y156,AE156)","v":11.3},"SF",{"$f":"+Instructions!$B$3","v":"B"},null,{"$f":"+Instructions!$C$22","v":0},{"$f":"ROUND($Y156*(1-U156)+0.004999,2)","v":11.3},null,"",11.3,0,11.3,0,null,1,11.3,null,null,11.3,0,0,"",null,"X"]
[null,null,null,null,null,null,null,null,null,null,null,null,null,null,null,null,null,null,null,null,null,null,null,null,null,null,null,null,null,null,null,null,null,null,null,null,null,null,"X"]
[null,"Decos",null,null,"0.6\" x 12\"",null,"Pencil Bullnose (Edge Stick)",null,null,null,null,null,null,null,"Stock",null,{"$f":"IF(Suggested=\"Yes\",Y158,AE158)","v":9.25},"EA",{"$f":"+Instructions!$B$3","v":"B"},null,{"$f":"+Instructions!$C$22","v":0},{"$f":"ROUND($Y158*(1-U158)+0.004999,2)","v":9.25},null,"",9.25,{"$f":"+U158","v":0},{"$f":"+V158","v":9.25},{"$f":"(AE158-AA158)/AE158","v":0},null,3,{"$f":"SUM(AH158:AJ158)+AC158","v":9.25},null,null,{"$f":"ROUND(AA158/(1-VLOOKUP(AD158,Group,2,FALSE)),2)","v":9.25},{"$f":"IF(VLOOKUP(AD158,Group,5,FALSE)=\"YES\",VLOOKUP(ROUND(ROUND(AH158,1)-AH158,2),Round,2,FALSE)+VLOOKUP(AD158,Group,6,FALSE),0)","v":0},{"$f":"IF(VLOOKUP(AD158,Group,7,FALSE)=\"\",0,ROUND(AH158-0.04999,1)-AH158+AK158)","v":0},{"$f":"IF(VLOOKUP(AD158,Group,7,FALSE)=\"\",\"\",VLOOKUP(AD158,Group,7,FALSE))","v":""},null,"X"]
[]
[null,null,null,"Note:","a) Glazed Porcelain and may be used on floor applications."]
[]
[null,null,"TOSCANA - Glazed Porcelain",null,null,null,null,null,null,null,null,null,null,null,null,"Item # Lookup:","APTO"]
[null,null,"   ",null,null,null,null,null,null,null,null,null,null,null,null,null,null,null,null,null,null,null,null,null,null,null,null,null,null,null,null,null,null,null,null,null,null,null,"X"]
[null,null,null,"Colors:","Ash          Cotton          Ghost Green          Herb          Lake Blue"]
[null,null,null,null,null,null,null,null,null,null,null,null,null,null,null,null,null,null,null,null,null,null,null,null,null,null,null,null,null,null,null,null,null,null,null,null,null,null,"X"]
[null,"Field Tile",null,null,"2.5\" x 8\"",null,"Field",null,null,null,null,null,null,"3.77 SF/CTN","Stock",null,{"$f":"IF(Suggested=\"Yes\",Y166,AE166)","v":10.95},"SF",{"$f":"+Instructions!$B$3","v":"B"},null,{"$f":"+Instructions!$C$22","v":0},{"$f":"ROUND($Y166*(1-U166)+0.004999,2)","v":10.95},null,"",10.95,{"$f":"+U166","v":0},{"$f":"+V166","v":10.95},{"$f":"(AE166-AA166)/AE166","v":0},null,1,{"$f":"SUM(AH166:AJ166)+AC166","v":10.95},null,null,{"$f":"ROUND(AA166/(1-VLOOKUP(AD166,Group,2,FALSE)),2)","v":10.95},{"$f":"IF(VLOOKUP(AD166,Group,5,FALSE)=\"YES\",VLOOKUP(ROUND(ROUND(AH166,1)-AH166,2),Round,2,FALSE)+VLOOKUP(AD166,Group,6,FALSE),0)","v":0},{"$f":"IF(VLOOKUP(AD166,Group,7,FALSE)=\"\",0,ROUND(AH166-0.04999,1)-AH166+AK166)","v":0},{"$f":"IF(VLOOKUP(AD166,Group,7,FALSE)=\"\",\"\",VLOOKUP(AD166,Group,7,FALSE))","v":""},null,"X"]
[null,"Field Tile",null,null,"5\" x 6\"",null,"Field - Hex",null,null,null,null,null,null,"3.34 SF/CTN","Stock",null,{"$f":"IF(Suggested=\"Yes\",Y167,AE167)","v":12.5},"SF",{"$f":"+Instructions!$B$3","v":"B"},null,{"$f":"+Instructions!$C$22","v":0},12.5,null,"",12.5,0,12.5,0,null,1,12.5,null,null,12.5,0,0,"",null,"X"]
[]
[null,null,"VERONA - Glazed Porcelain",null,null,null,null,null,null,null,null,null,null,null,null,"Item # Lookup:","APVE"]
[null,null,"   ",null,null,null,null,null,null,null,null,null,null,null,null,null,null,null,null,null,null,null,null,null,null,null,null,null,null,null,null,null,null,null,null,null,null,null,"X"]
[null,null,null,"Colors:","Grey          White"]
[null,null,null,null,null,null,null,null,null,null,null,null,null,null,null,null,null,null,null,null,null,null,null,null,null,null,null,null,null,null,null,null,null,null,null,null,null,null,"X"]
[null,"Field Tile",null,null,"3\" x 12\"",null,"Field",null,null,null,null,null,null,"4.84 SF/CTN","Stock",null,{"$f":"IF(Suggested=\"Yes\",Y173,AE173)","v":7.95},"SF",{"$f":"+Instructions!$B$3","v":"B"},null,{"$f":"+Instructions!$C$22","v":0},{"$f":"ROUND($Y173*(1-U173)+0.004999,2)","v":7.95},null,"",7.95,{"$f":"+U173","v":0},{"$f":"+V173","v":7.95},{"$f":"(AE173-AA173)/AE173","v":0},null,1,{"$f":"SUM(AH173:AJ173)+AC173","v":7.95},null,null,{"$f":"ROUND(AA173/(1-VLOOKUP(AD173,Group,2,FALSE)),2)","v":7.95},{"$f":"IF(VLOOKUP(AD173,Group,5,FALSE)=\"YES\",VLOOKUP(ROUND(ROUND(AH173,1)-AH173,2),Round,2,FALSE)+VLOOKUP(AD173,Group,6,FALSE),0)","v":0},{"$f":"IF(VLOOKUP(AD173,Group,7,FALSE)=\"\",0,ROUND(AH173-0.04999,1)-AH173+AK173)","v":0},{"$f":"IF(VLOOKUP(AD173,Group,7,FALSE)=\"\",\"\",VLOOKUP(AD173,Group,7,FALSE))","v":""},null,"X"]
[null,"Field Tile",null,null,"5.5\" x 6.3\"",null,"Field - Hexagon",null,null,null,null,null,null,"4.52 SF/CTN","Stock",null,{"$f":"IF(Suggested=\"Yes\",Y174,AE174)","v":11.3},"SF",{"$f":"+Instructions!$B$3","v":"B"},null,{"$f":"+Instructions!$C$22","v":0},11.3,null,"",11.3,0,11.3,0,null,1,11.3,null,null,11.3,0,0,"",null,"X"]
[null,"Field Tile",null,null,"8\" x 8\"",null,"Field - Octagon",null,null,null,null,null,null,"11.19 SF/CTN","Stock",null,{"$f":"IF(Suggested=\"Yes\",Y175,AE175)","v":9.75},"SF",{"$f":"+Instructions!$B$3","v":"B"},null,{"$f":"+Instructions!$C$22","v":0},{"$f":"ROUND($Y175*(1-U175)+0.004999,2)","v":9.75},null,"",9.75,{"$f":"+U175","v":0},{"$f":"+V175","v":9.75},{"$f":"(AE175-AA175)/AE175","v":0},null,1,{"$f":"SUM(AH175:AJ175)+AC175","v":9.75},null,null,{"$f":"ROUND(AA175/(1-VLOOKUP(AD175,Group,2,FALSE)),2)","v":9.75},{"$f":"IF(VLOOKUP(AD175,Group,5,FALSE)=\"YES\",VLOOKUP(ROUND(ROUND(AH175,1)-AH175,2),Round,2,FALSE)+VLOOKUP(AD175,Group,6,FALSE),0)","v":0},{"$f":"IF(VLOOKUP(AD175,Group,7,FALSE)=\"\",0,ROUND(AH175-0.04999,1)-AH175+AK175)","v":0},{"$f":"IF(VLOOKUP(AD175,Group,7,FALSE)=\"\",\"\",VLOOKUP(AD175,Group,7,FALSE))","v":""},null,"X"]
[null,null,null,null,null,null,null,null,null,null,null,null,null,null,null,null,null,null,null,null,null,null,null,null,null,null,null,null,null,null,null,null,null,null,null,null,null,null,"X"]
[null,"Decos",null,null,"0.6\" x 12\"",null,"Pencil Bullnose (Edge Stick)",null,null,null,null,null,null,null,"Stock",null,{"$f":"IF(Suggested=\"Yes\",Y177,AE177)","v":9.25},"EA",{"$f":"+Instructions!$B$3","v":"B"},null,{"$f":"+Instructions!$C$22","v":0},{"$f":"ROUND($Y177*(1-U177)+0.004999,2)","v":9.25},null,"",9.25,{"$f":"+U177","v":0},{"$f":"+V177","v":9.25},{"$f":"(AE177-AA177)/AE177","v":0},null,3,{"$f":"SUM(AH177:AJ177)+AC177","v":9.25},null,null,{"$f":"ROUND(AA177/(1-VLOOKUP(AD177,Group,2,FALSE)),2)","v":9.25},{"$f":"IF(VLOOKUP(AD177,Group,5,FALSE)=\"YES\",VLOOKUP(ROUND(ROUND(AH177,1)-AH177,2),Round,2,FALSE)+VLOOKUP(AD177,Group,6,FALSE),0)","v":0},{"$f":"IF(VLOOKUP(AD177,Group,7,FALSE)=\"\",0,ROUND(AH177-0.04999,1)-AH177+AK177)","v":0},{"$f":"IF(VLOOKUP(AD177,Group,7,FALSE)=\"\",\"\",VLOOKUP(AD177,Group,7,FALSE))","v":""},null,"X"]
[null,null,"   ",null,null,null,null,null,null,null,null,null,null,null,null,null,null,null,null,null,null,null,null,null,null,null,null,null,null,null,null,null,null,null,null,null,null,null,"X"]
[null,null,null,"Colors:","Black"]
[null,null,null,null,null,null,null,null,null,null,null,null,null,null,null,null,null,null,null,null,null,null,null,null,null,null,null,null,null,null,null,null,null,null,null,null,null,null,"X"]
[null,"Decos",null,null,"1.5\" x 1.5\"",null,"Dot","(to be used with 8\" x 8\" Octagon)",null,null,null,null,null,"26 PCS/CTN","Stock","a",{"$f":"IF(Suggested=\"Yes\",Y181,AE181)","v":0.55000000000000004},"EA",{"$f":"+Instructions!$B$3","v":"B"},null,{"$f":"+Instructions!$C$22","v":0},{"$f":"ROUND($Y181*(1-U181)+0.004999,2)","v":0.55000000000000004},null,"",0.55000000000000004,{"$f":"+U181","v":0},{"$f":"+V181","v":0.55000000000000004},{"$f":"(AE181-AA181)/AE181","v":0},null,3,{"$f":"SUM(AH181:AJ181)+AC181","v":0.55000000000000004},null,null,{"$f":"ROUND(AA181/(1-VLOOKUP(AD181,Group,2,FALSE)),2)","v":0.55000000000000004},{"$f":"IF(VLOOKUP(AD181,Group,5,FALSE)=\"YES\",VLOOKUP(ROUND(ROUND(AH181,1)-AH181,2),Round,2,FALSE)+VLOOKUP(AD181,Group,6,FALSE),0)","v":0},{"$f":"IF(VLOOKUP(AD181,Group,7,FALSE)=\"\",0,ROUND(AH181-0.04999,1)-AH181+AK181)","v":0},{"$f":"IF(VLOOKUP(AD181,Group,7,FALSE)=\"\",\"\",VLOOKUP(AD181,Group,7,FALSE))","v":""},null,"X"]
[]
[null,null,null,"Note:","a) Need 2.25 dots per SF of 8\" x 8\" octagon field tile.  1 carton of dots to 1 carton of 8\" octagon field tile."]
[]
[null,null,"VINTAGE - Glazed Ceramic Wall",null,null,null,null,null,null,null,null,null,null,null,null,"Item # Lookup:","APVI"]
[null,null,"   ",null,null,null,null,null,null,null,null,null,null,null,null,null,null,null,null,null,null,null,null,null,null,null,null,null,null,null,null,null,null,null,null,null,null,null,"X"]
[null,null,null,"Colors:","Black          Graphite          Grey          Ivory          Lake          Natural          White"]
[null,null,null,null,null,null,null,null,null,null,null,null,null,null,null,null,null,null,null,null,null,null,null,null,null,null,null,null,null,null,null,null,null,null,null,null,null,null,"X"]
[null,"Field Tile",null,null,"3\" x 6\"",null,"Field",null,null,null,null,null,null,"5.38 SF/CTN","Stock",null,{"$f":"IF(Suggested=\"Yes\",Y189,AE189)","v":8.1},"SF",{"$f":"+Instructions!$B$3","v":"B"},null,{"$f":"+Instructions!$C$22","v":0},{"$f":"ROUND($Y189*(1-U189)+0.004999,2)","v":8.1},null,"",8.1,{"$f":"+U189","v":0},{"$f":"+V189","v":8.1},{"$f":"(AE189-AA189)/AE189","v":0},null,1,{"$f":"SUM(AH189:AJ189)+AC189","v":8.1},null,null,{"$f":"ROUND(AA189/(1-VLOOKUP(AD189,Group,2,FALSE)),2)","v":8.1},{"$f":"IF(VLOOKUP(AD189,Group,5,FALSE)=\"YES\",VLOOKUP(ROUND(ROUND(AH189,1)-AH189,2),Round,2,FALSE)+VLOOKUP(AD189,Group,6,FALSE),0)","v":0},{"$f":"IF(VLOOKUP(AD189,Group,7,FALSE)=\"\",0,ROUND(AH189-0.04999,1)-AH189+AK189)","v":0},{"$f":"IF(VLOOKUP(AD189,Group,7,FALSE)=\"\",\"\",VLOOKUP(AD189,Group,7,FALSE))","v":""},null,"X"]
[null,"Field Tile",null,null,"4\" x 8\"",null,"Field - Elongated Hex (Hextra)",null,null,null,null,null,null,"5.38 SF/CTN","Stock",null,{"$f":"IF(Suggested=\"Yes\",Y190,AE190)","v":9.5},"SF",{"$f":"+Instructions!$B$3","v":"B"},null,{"$f":"+Instructions!$C$22","v":0},{"$f":"ROUND($Y190*(1-U190)+0.004999,2)","v":9.5},null,"",9.5,{"$f":"+U190","v":0},{"$f":"+V190","v":9.5},{"$f":"(AE190-AA190)/AE190","v":0},null,1,{"$f":"SUM(AH190:AJ190)+AC190","v":9.5},null,null,{"$f":"ROUND(AA190/(1-VLOOKUP(AD190,Group,2,FALSE)),2)","v":9.5},{"$f":"IF(VLOOKUP(AD190,Group,5,FALSE)=\"YES\",VLOOKUP(ROUND(ROUND(AH190,1)-AH190,2),Round,2,FALSE)+VLOOKUP(AD190,Group,6,FALSE),0)","v":0},{"$f":"IF(VLOOKUP(AD190,Group,7,FALSE)=\"\",0,ROUND(AH190-0.04999,1)-AH190+AK190)","v":0},{"$f":"IF(VLOOKUP(AD190,Group,7,FALSE)=\"\",\"\",VLOOKUP(AD190,Group,7,FALSE))","v":""},null,"X"]
[null,"Field Tile",null,null,"3\" x 12\"",null,"Field",null,null,null,null,null,null,"5.38 SF/CTN","Stock","a",{"$f":"IF(Suggested=\"Yes\",Y191,AE191)","v":7.75},"SF",{"$f":"+Instructions!$B$3","v":"B"},null,{"$f":"+Instructions!$C$22","v":0},{"$f":"ROUND($Y191*(1-U191)+0.004999,2)","v":7.75},null,"",7.75,{"$f":"+U191","v":0},{"$f":"+V191","v":7.75},{"$f":"(AE191-AA191)/AE191","v":0},null,1,{"$f":"SUM(AH191:AJ191)+AC191","v":7.75},null,null,{"$f":"ROUND(AA191/(1-VLOOKUP(AD191,Group,2,FALSE)),2)","v":7.75},{"$f":"IF(VLOOKUP(AD191,Group,5,FALSE)=\"YES\",VLOOKUP(ROUND(ROUND(AH191,1)-AH191,2),Round,2,FALSE)+VLOOKUP(AD191,Group,6,FALSE),0)","v":0},{"$f":"IF(VLOOKUP(AD191,Group,7,FALSE)=\"\",0,ROUND(AH191-0.04999,1)-AH191+AK191)","v":0},{"$f":"IF(VLOOKUP(AD191,Group,7,FALSE)=\"\",\"\",VLOOKUP(AD191,Group,7,FALSE))","v":""},null,"X"]
[null,null,null,null,null,null,null,null,null,null,null,null,null,null,null,null,null,null,null,null,null,null,null,null,null,null,null,null,null,null,null,null,null,null,null,null,null,null,"X"]
[null,"Trim",null,null,"3\" x 12\"",null,"Bullnose",null,null,null,null,null,null,null,"Stock",null,{"$f":"IF(Suggested=\"Yes\",Y193,AE193)","v":8.6999999999999993},"EA",{"$f":"+Instructions!$B$3","v":"B"},null,{"$f":"+Instructions!$C$22","v":0},{"$f":"ROUND($Y193*(1-U193)+0.004999,2)","v":8.6999999999999993},null,"",8.6999999999999993,{"$f":"+U193","v":0},{"$f":"+V193","v":8.6999999999999993},{"$f":"(AE193-AA193)/AE193","v":0},null,2,{"$f":"SUM(AH193:AJ193)+AC193","v":8.6999999999999993},null,null,{"$f":"ROUND(AA193/(1-VLOOKUP(AD193,Group,2,FALSE)),2)","v":8.6999999999999993},{"$f":"IF(VLOOKUP(AD193,Group,5,FALSE)=\"YES\",VLOOKUP(ROUND(ROUND(AH193,1)-AH193,2),Round,2,FALSE)+VLOOKUP(AD193,Group,6,FALSE),0)","v":0},{"$f":"IF(VLOOKUP(AD193,Group,7,FALSE)=\"\",0,ROUND(AH193-0.04999,1)-AH193+AK193)","v":0},{"$f":"IF(VLOOKUP(AD193,Group,7,FALSE)=\"\",\"\",VLOOKUP(AD193,Group,7,FALSE))","v":""},null,"X"]
[]
[null,null,null,"Note:","a) Packaging is changing from 5.38 SF/CTN to 10.76 SF/CTN as inventory with old packaging is depleted."]
[]
[]
[]
[]
[]
[]
[]
[]
[]
[null,null,"This price list is available electronically on an Excel spreadsheet at www.conestogatile.com/pricelists."]
[]
[null,null,"The spreadsheet has many special features to assist you.  Apply your discount to generate your net costs for your purchasing department.  Apply your standard gross margin percentage or custom prices to generate your own custom price list for your showroom.  Print out individual price list for each series that can be attached to the back of your sample boards for easy reference."]
[null,null,"The spreadsheet has many special features to assist you.  Apply your discount to generate your net costs for your purchasing"]
[null,null,"department.  Apply your standard gross margin percentage or custom prices to generate your own custom price list for your showroom."]
[null,null,"Print out individual price list for each series that can be attached to the back of your sample boards for easy reference."]
[null,null,null,null,null,null,null,null,null,null,null,null,null,null,null,null,null,null,null,null,null,null,null,null,null,null,null,null,null,null,null,null,null,null,null,null,null,null,"X"]
["X","X","X","X","X","X","X","X","X","X","X","X","X","X","X","X","X","X","X","X","X","X","X","X","X","X","X","X","X","X","X","X","X","X","X","X","X","X","X"]
[]
[null,"Trim",null,null,null,null,"2023 Tabletop Display",null,null,null,null,null,null,null,null,null,{"$f":"IF(Suggested=\"Yes\",Y214,AE214)","v":150},"EA",{"$f":"+Instructions!$B$3","v":"B"},null,{"$f":"+Instructions!$C$22","v":0},{"$f":"ROUND($Y214*(1-U214)+0.004999,2)","v":150},null,"new",150,{"$f":"+U214","v":0},{"$f":"+V214","v":150},{"$f":"(AE214-AA214)/AE214","v":0},null,2,{"$f":"SUM(AH214:AJ214)+AC214","v":150},null,null,{"$f":"ROUND(AA214/(1-VLOOKUP(AD214,Group,2,FALSE)),2)","v":150},{"$f":"IF(VLOOKUP(AD214,Group,5,FALSE)=\"YES\",VLOOKUP(ROUND(ROUND(AH214,1)-AH214,2),Round,2,FALSE)+VLOOKUP(AD214,Group,6,FALSE),0)","v":0},{"$f":"IF(VLOOKUP(AD214,Group,7,FALSE)=\"\",0,ROUND(AH214-0.04999,1)-AH214+AK214)","v":0},{"$f":"IF(VLOOKUP(AD214,Group,7,FALSE)=\"\",\"\",VLOOKUP(AD214,Group,7,FALSE))","v":""},null,"X"]
[]
[null,null,null,-0.04,0.01]
[null,null,null,-0.03,0.02]
[null,null,null,-0.02,0.03]
[null,null,null,-0.01,-0.01]
[null,null,null,0,0]
[null,null,null,0.01,1.0000000000005116E-2]
[null,null,null,0.02,2.0000000000003126E-2]
[null,null,null,0.03,3.0000000000001137E-2]
[null,null,null,0.04,-0.01]
[null,null,null,0.05,0]

{"sheet":"Websites","index":3,"n_rows":24,"n_cols":2,"rows_kept":24,"cut":false,"hidden":false,"merged":[]}
["Easy Access Website links"]
[]
["ConestogaTile's Website","https://www.conestogatile.com/"]
[]
["Manufacturer's Home Page","https://www.apegrupo.com/en/products/"]
[]
[]
["Product","Direct Website Link"]
["Altea","https://www.apegrupo.com/en/products/altea/"]
["Calpe","https://www.apegrupo.com/en/products/calpe/"]
["Calacatta Slow","https://www.apegrupo.com/en/products/calacatta-slow/"]
["Dynamic","https://www.apegrupo.com/en/products/dynamic/"]
["Fado","https://www.apegrupo.com/en/products/fado/"]
["Grunge","https://www.apegrupo.com/en/products/grunge/"]
["Hamptons","https://www.apegrupo.com/en/products/hamptons/"]
["Memories","https://www.apegrupo.com/en/products/memories/"]
["Murus","https://www.apegrupo.com/en/products/murus/"]
["Onyx Slow","https://www.apegrupo.com/en/products/onyx-slow/"]
["Savannah","https://www.apegrupo.com/en/products/savannah/"]
["Seville","https://www.apegrupo.com/en/products/seville/"]
["Switch","https://www.apegrupo.com/en/products/switch/"]
["Toscana","https://www.apegrupo.com/en/products/toscana/"]
["Verona","https://www.apegrupo.com/en/products/verona/"]
["Vintage","https://www.apegrupo.com/en/products/vintage/"]

{"sheet":"Changes","index":4,"n_rows":42,"n_cols":3,"rows_kept":42,"cut":false,"hidden":false,"merged":[[0,2,1,2]]}
["Date",null,"Description"]
["Announced","Series"]
[]
["New Products"]
["2020-07-01","Altea","Glazed Ceramic Wall"]
["2020-07-01","Calpe","Glazed Ceramic Wall"]
["2020-07-01","Dynamic","Glazed Ceramic Wall"]
["2020-07-01","Grunge","Glazed Ceramic Wall"]
["2020-07-01","Switch","Glazed Ceramic Wall"]
["2020-07-01","Vintage","Glazed Ceramic Wall"]
["2021-08-30","Fado","Glazed Ceramic Wall"]
["2021-08-30","Hamptons","Glazed Ceramic Wall"]
["2021-08-30","Memories","Glazed Ceramic Wall"]
["2021-08-30","Murus","Glazed Ceramic Wall"]
["2023-01-01","Calacatta Slow","Glazed Ceramic Wall & Glazed Porcelain Floor"]
["2023-01-01","Onyx Slow","Glazed Ceramic Wall & Glazed Porcelain Floor"]
["2023-01-01","Savannah","Glazed Ceramic Wall"]
["2023-01-01","Seville","Glazed Ceramic Wall"]
["2023-01-01","Toscana","Glazed Ceramic Wall"]
["2023-01-01","Verona","Glazed Ceramic Wall & Glazed Porcelain Floor"]
[]
[]
[]
[]
["Discontinued Products"]
["2023-04-06","Vintage","6\" x 6\" Field Tile format only in all colors."]
[]
[]
[]
[]
[]
[]
[]
[]
[]
[]
[]
[]
["Changes"]
["2023-03-28","Toscana","It has been learned that the tile in this series is a Glazed Porcelain.  The only place Ape does not recommend its installation is in very high traffic areas like malls etc.."]
["2023-05-19","Altea","The 3\" x 12\" Field Tile packaging is changing from 5.38 SF/CTN to 10.76 SF/CTN as inventory with old packaging is depleted."]
["2023-05-19","Murus","The 3\" x 11\" Field Tile packaging is changing from 10.55 SF/CTN to 6.35 SF/CTN as inventory with old packaging is depleted."]